[Event "November 21 Early 2023"]
[Site "https://www.chess.com"]
[Date "2023.11.21"]
[Round "2"]
[White "Pak, Yevgeniy"]
[Black "vinclat"]
[Result "1-0"]
[Board "165"]
[TimeControl "180+1"]
[WhiteFideId "14201712"]
[WhiteElo "2320"]
[BlackElo "2377"]
[WhiteTeam "KAZ"]
[WhiteClock "0:00:34"]
[BlackClock "0:00:01"]

1. e4 {[%clk 0:03:00]}  e5 {[%clk 0:02:56]} 2. Nf3 {[%clk 0:03:00]}  Nc6 {[%clk 0:02:56]} 3. Bb5 {[%clk 0:03:00]}  a6 {[%clk 0:02:55]} 4. Ba4 {[%clk 0:03:00]}  d6 {[%clk 0:02:56]} 5. O-O {[%clk 0:02:56]}  Bd7 {[%clk 0:02:56]} 6. d4 {[%clk 0:02:53]}  Nxd4 {[%clk 0:02:47]} 7. Bxd7+ {[%clk 0:02:51]}  Qxd7 {[%clk 0:02:48]} 8. Nxd4 {[%clk 0:02:51]}  exd4 {[%clk 0:02:49]} 9. Qxd4 {[%clk 0:02:51]}  Nf6 {[%clk 0:02:49]} 10. Nc3 {[%clk 0:02:47]}  Be7 {[%clk 0:02:49]} 11. f4 {[%clk 0:02:41]}  O-O {[%clk 0:02:48]} 12. Be3 {[%clk 0:02:22]}  Rfe8 {[%clk 0:02:45]} 13. Rad1 {[%clk 0:02:21]}  Ng4 {[%clk 0:02:31]} 14. h3 {[%clk 0:02:12]}  Nxe3 {[%clk 0:02:08]} 15. Qxe3 {[%clk 0:02:12]}  Bf8 {[%clk 0:02:02]} 16. Qg3 {[%clk 0:02:09]}  Kh8 {[%clk 0:01:56]} 17. Rfe1 {[%clk 0:01:34]}  Qc6 {[%clk 0:01:32]} 18. Nd5 {[%clk 0:01:23]}  Re6 {[%clk 0:01:11]} 19. c3 {[%clk 0:01:21]}  Rae8 {[%clk 0:01:11]} 20. Qf3 {[%clk 0:01:15]}  f5 {[%clk 0:01:08]} 21. Rd4 {[%clk 0:00:53]}  Qc5 {[%clk 0:00:42]} 22. Kh2 {[%clk 0:00:50]}  fxe4 {[%clk 0:00:40]} 23. Rdxe4 {[%clk 0:00:42]}  Rxe4 {[%clk 0:00:33]} 24. Rxe4 {[%clk 0:00:39]}  Rxe4 {[%clk 0:00:31]} 25. Qxe4 {[%clk 0:00:38]}  Qc6 {[%clk 0:00:32]} 26. Qe6 {[%clk 0:00:36]}  g6 {[%clk 0:00:03]} 27. Qf7 {[%clk 0:00:35]}  Bg7 {[%clk 0:00:01]} 28. Ne7 {[%clk 0:00:34]} 1-0

[Event "November 21 Early 2023"]
[Site "https://www.chess.com"]
[Date "2023.11.21"]
[Round "2"]
[White "Dilmukhametov, Artur"]
[Black "Gallegos Diaz, Carlos Alberto"]
[Result "0-1"]
[Board "166"]
[TimeControl "180+1"]
[WhiteFideId "24179922"]
[BlackFideId "3900886"]
[WhiteElo "2176"]
[BlackElo "2362"]
[WhiteTeam "RUS"]
[BlackTeam "VEN"]
[WhiteClock "0:00:00"]
[BlackClock "0:00:38"]

1. e4 {[%clk 0:02:59]}  d6 {[%clk 0:02:59]} 2. d4 {[%clk 0:02:58]}  Nf6 {[%clk 0:02:59]} 3. Nf3 {[%clk 0:02:59]}  Nxe4 {[%clk 0:02:58]} 4. Bd3 {[%clk 0:02:59]}  Nf6 {[%clk 0:02:57]} 5. O-O {[%clk 0:02:57]}  g6 {[%clk 0:02:50]} 6. Be3 {[%clk 0:02:56]}  Bg7 {[%clk 0:02:50]} 7. h3 {[%clk 0:02:55]}  O-O {[%clk 0:02:49]} 8. Qd2 {[%clk 0:02:54]}  Re8 {[%clk 0:02:43]} 9. c4 {[%clk 0:02:52]}  e5 {[%clk 0:02:41]} 10. dxe5 {[%clk 0:02:49]}  dxe5 {[%clk 0:02:40]} 11. Bc2 {[%clk 0:02:19]}  Qxd2 {[%clk 0:02:32]} 12. Nbxd2 {[%clk 0:02:20]}  Nc6 {[%clk 0:02:31]} 13. a3 {[%clk 0:02:17]}  a6 {[%clk 0:02:21]} 14. Rad1 {[%clk 0:02:14]}  Bd7 {[%clk 0:02:14]} 15. Ng5 {[%clk 0:01:59]}  Nd4 {[%clk 0:02:03]} 16. Bxd4 {[%clk 0:01:37]}  exd4 {[%clk 0:02:04]} 17. Nde4 {[%clk 0:01:34]}  Nxe4 {[%clk 0:01:55]} 18. Nxe4 {[%clk 0:01:31]}  Bc6 {[%clk 0:01:48]} 19. Ng3 {[%clk 0:01:20]}  f5 {[%clk 0:01:45]} 20. Rfe1 {[%clk 0:01:12]}  Rad8 {[%clk 0:01:37]} 21. b4 {[%clk 0:01:01]}  Rxe1+ {[%clk 0:01:17]} 22. Rxe1 {[%clk 0:01:01]}  d3 {[%clk 0:01:16]} 23. Rd1 {[%clk 0:00:00]}  f4 {[%clk 0:00:38]} 0-1

[Event "November 21 Early 2023"]
[Site "https://www.chess.com"]
[Date "2023.11.21"]
[Round "2"]
[White "Garrido, Denis"]
[Black "Demin, Vladimir"]
[Result "0-1"]
[Board "167"]
[TimeControl "180+1"]
[WhiteFideId "601217"]
[BlackFideId "4167457"]
[WhiteElo "2374"]
[BlackElo "2569"]
[WhiteTeam "FRA"]
[BlackTeam "RUS"]
[WhiteClock "0:01:51"]
[BlackClock "0:01:01"]

1. e4 {[%clk 0:03:00]}  e5 {[%clk 0:02:51]} 2. Nf3 {[%clk 0:03:00]}  Nc6 {[%clk 0:02:50]} 3. Bc4 {[%clk 0:03:01]}  Bc5 {[%clk 0:02:50]} 4. c3 {[%clk 0:03:01]}  Nf6 {[%clk 0:02:50]} 5. d3 {[%clk 0:03:01]}  a6 {[%clk 0:02:49]} 6. O-O {[%clk 0:03:01]}  d6 {[%clk 0:02:45]} 7. a4 {[%clk 0:03:00]}  Ba7 {[%clk 0:02:45]} 8. Re1 {[%clk 0:02:57]}  O-O {[%clk 0:02:43]} 9. h3 {[%clk 0:02:57]}  Re8 {[%clk 0:02:41]} 10. Nbd2 {[%clk 0:02:56]}  Be6 {[%clk 0:02:41]} 11. Bxe6 {[%clk 0:02:47]}  Rxe6 {[%clk 0:02:42]} 12. b4 {[%clk 0:02:47]}  d5 {[%clk 0:02:39]} 13. Bb2 {[%clk 0:02:42]}  d4 {[%clk 0:02:29]} 14. cxd4 {[%clk 0:02:41]}  Nxd4 {[%clk 0:02:26]} 15. Nxd4 {[%clk 0:02:41]}  Bxd4 {[%clk 0:02:25]} 16. Bxd4 {[%clk 0:02:40]}  Qxd4 {[%clk 0:02:26]} 17. Nc4 {[%clk 0:02:32]}  Rd8 {[%clk 0:02:22]} 18. Ra3 {[%clk 0:02:26]}  Nxe4 {[%clk 0:02:08]} 19. Qf3 {[%clk 0:02:21]}  Ng5 {[%clk 0:01:48]} 20. Qxb7 {[%clk 0:02:20]}  e4 {[%clk 0:01:27]} 21. Rd1 {[%clk 0:02:10]}  Rg6 {[%clk 0:01:19]} 22. Ne3 {[%clk 0:01:54]}  Nxh3+ {[%clk 0:01:11]} 23. Kh2 {[%clk 0:01:54]}  Qe5+ {[%clk 0:01:01]} 24. Kh1 {[%clk 0:01:51]}  Nxf2+ {[%clk 0:01:01]} 0-1

[Event "November 21 Early 2023"]
[Site "https://www.chess.com"]
[Date "2023.11.21"]
[Round "2"]
[White "secrethawk1"]
[Black "Morgunov, Marc"]
[Result "1-0"]
[Board "168"]
[TimeControl "180+1"]
[BlackFideId "1640305"]
[WhiteElo "2372"]
[BlackElo "2371"]
[BlackTeam "AUT"]
[WhiteClock "0:00:32"]
[BlackClock "0:01:01"]

1. e4 {[%clk 0:03:00]}  c5 {[%clk 0:02:56]} 2. Nf3 {[%clk 0:02:56]}  d6 {[%clk 0:02:55]} 3. d4 {[%clk 0:02:55]}  cxd4 {[%clk 0:02:52]} 4. Nxd4 {[%clk 0:02:56]}  Nf6 {[%clk 0:02:52]} 5. Nc3 {[%clk 0:02:53]}  a6 {[%clk 0:02:52]} 6. Be3 {[%clk 0:02:49]}  e5 {[%clk 0:02:48]} 7. Nf3 {[%clk 0:02:46]}  Be7 {[%clk 0:02:43]} 8. Bc4 {[%clk 0:02:46]}  O-O {[%clk 0:02:40]} 9. O-O {[%clk 0:02:41]}  Qc7 {[%clk 0:02:39]} 10. Bb3 {[%clk 0:02:17]}  Nc6 {[%clk 0:02:36]} 11. a4 {[%clk 0:02:13]}  Na5 {[%clk 0:02:35]} 12. Bd5 {[%clk 0:02:11]}  Be6 {[%clk 0:02:34]} 13. Qd3 {[%clk 0:01:40]}  Nc4 {[%clk 0:02:31]} 14. Bxe6 {[%clk 0:01:33]}  Nxb2 {[%clk 0:02:16]} 15. Bxf7+ {[%clk 0:01:27]}  Rxf7 {[%clk 0:02:17]} 16. Qd2 {[%clk 0:01:25]}  Rc8 {[%clk 0:02:07]} 17. Nd5 {[%clk 0:01:22]}  Nxd5 {[%clk 0:01:58]} 18. Qxd5 {[%clk 0:01:17]}  Qc6 {[%clk 0:01:48]} 19. Qe6 {[%clk 0:01:14]}  Bf6 {[%clk 0:01:37]} 20. Nd2 {[%clk 0:00:59]}  Qxc2 {[%clk 0:01:18]} 21. Nb3 {[%clk 0:00:51]}  Nc4 {[%clk 0:01:09]} 22. Qxc8+ {[%clk 0:00:49]}  Rf8 {[%clk 0:01:09]} 23. Qe6+ {[%clk 0:00:48]}  Kh8 {[%clk 0:01:09]} 24. Rac1 {[%clk 0:00:43]}  Qxb3 {[%clk 0:01:06]} 25. Qxc4 {[%clk 0:00:41]}  Qa3 {[%clk 0:01:04]} 26. Ra1 {[%clk 0:00:33]}  Qb2 {[%clk 0:01:01]} 27. Rfb1 {[%clk 0:00:32]} 1-0

[Event "November 21 Early 2023"]
[Site "https://www.chess.com"]
[Date "2023.11.21"]
[Round "2"]
[White "Ovezdurdyyeva, Jemal"]
[Black "Omariev, Maksim"]
[Result "0-1"]
[Board "170"]
[TimeControl "180+1"]
[WhiteFideId "14001888"]
[BlackFideId "4193423"]
[WhiteElo "2086"]
[BlackElo "2550"]
[WhiteTeam "TKM"]
[BlackTeam "RUS"]
[WhiteClock "0:00:11"]
[BlackClock "0:00:33"]

1. e4 {[%clk 0:01:47]}  c5 {[%clk 0:02:33]} 2. Nf3 {[%clk 0:01:47]}  d6 {[%clk 0:02:33]} 3. c3 {[%clk 0:01:47]}  Nf6 {[%clk 0:02:32]} 4. Bd3 {[%clk 0:01:47]}  Nbd7 {[%clk 0:02:31]} 5. O-O {[%clk 0:01:46]}  b6 {[%clk 0:02:31]} 6. Bc2 {[%clk 0:01:46]}  Bb7 {[%clk 0:02:32]} 7. Re1 {[%clk 0:01:46]}  g6 {[%clk 0:02:20]} 8. d4 {[%clk 0:01:45]}  Qc7 {[%clk 0:02:13]} 9. e5 {[%clk 0:01:43]}  Nd5 {[%clk 0:02:01]} 10. e6 {[%clk 0:01:34]}  fxe6 {[%clk 0:02:00]} 11. Ng5 {[%clk 0:01:34]}  N7f6 {[%clk 0:01:50]} 12. Nxe6 {[%clk 0:01:34]}  Qd7 {[%clk 0:01:50]} 13. a3 {[%clk 0:01:09]}  Nc7 {[%clk 0:01:33]} 14. Nxf8 {[%clk 0:00:58]}  Rxf8 {[%clk 0:01:27]} 15. Bh6 {[%clk 0:00:58]}  Rf7 {[%clk 0:01:26]} 16. Bb3 {[%clk 0:00:54]}  Nfd5 {[%clk 0:01:19]} 17. c4 {[%clk 0:00:47]}  Nf4 {[%clk 0:01:17]} 18. d5 {[%clk 0:00:44]}  O-O-O {[%clk 0:01:13]} 19. Nc3 {[%clk 0:00:35]}  e5 {[%clk 0:00:58]} 20. a4 {[%clk 0:00:22]}  a5 {[%clk 0:00:57]} 21. Nb5 {[%clk 0:00:15]}  Nxb5 {[%clk 0:00:57]} 22. axb5 {[%clk 0:00:16]}  Rf5 {[%clk 0:00:51]} 23. Bc2 {[%clk 0:00:14]}  g5 {[%clk 0:00:35]} 24. Bxf5 {[%clk 0:00:13]}  Qxf5 {[%clk 0:00:36]} 25. Qh5 {[%clk 0:00:11]}  Nxh5 {[%clk 0:00:33]} 0-1

[Event "November 21 Early 2023"]
[Site "https://www.chess.com"]
[Date "2023.11.21"]
[Round "2"]
[White "subham777"]
[Black "Skurikhin, Dmitrij"]
[Result "1/2-1/2"]
[Board "173"]
[TimeControl "180+1"]
[BlackFideId "4161297"]
[WhiteElo "2536"]
[BlackElo "2197"]
[BlackTeam "RUS"]
[WhiteClock "0:00:40"]
[BlackClock "0:00:55"]

1. e4 {[%clk 0:03:00]}  e6 {[%clk 0:02:58]} 2. Nf3 {[%clk 0:02:59]}  d5 {[%clk 0:02:57]} 3. Nc3 {[%clk 0:03:00]}  Nf6 {[%clk 0:02:55]} 4. e5 {[%clk 0:02:59]}  Nfd7 {[%clk 0:02:55]} 5. d4 {[%clk 0:02:51]}  c5 {[%clk 0:02:55]} 6. dxc5 {[%clk 0:02:51]}  Nc6 {[%clk 0:02:52]} 7. Bf4 {[%clk 0:02:46]}  Bxc5 {[%clk 0:02:50]} 8. Bd3 {[%clk 0:02:44]}  h6 {[%clk 0:02:49]} 9. h4 {[%clk 0:02:44]}  a6 {[%clk 0:02:47]} 10. Rh3 {[%clk 0:02:43]}  b5 {[%clk 0:02:42]} 11. Rg3 {[%clk 0:02:39]}  Bf8 {[%clk 0:02:41]} 12. Qe2 {[%clk 0:02:36]}  Bb7 {[%clk 0:02:39]} 13. O-O-O {[%clk 0:02:27]}  Qa5 {[%clk 0:02:38]} 14. Nxd5 {[%clk 0:02:19]}  O-O-O {[%clk 0:01:43]} 15. Nc3 {[%clk 0:02:11]}  b4 {[%clk 0:01:42]} 16. Ne4 {[%clk 0:01:58]}  Qxa2 {[%clk 0:01:40]} 17. Nd6+ {[%clk 0:01:51]}  Bxd6 {[%clk 0:01:28]} 18. exd6 {[%clk 0:01:52]}  e5 {[%clk 0:01:20]} 19. Nxe5 {[%clk 0:01:38]}  Ncxe5 {[%clk 0:01:18]} 20. Bxe5 {[%clk 0:01:35]}  Rhe8 {[%clk 0:01:14]} 21. Re3 {[%clk 0:01:32]}  Nxe5 {[%clk 0:01:01]} 22. Rxe5 {[%clk 0:01:31]}  Qa1+ {[%clk 0:01:02]} 23. Kd2 {[%clk 0:01:30]}  Qxb2 {[%clk 0:01:03]} 24. d7+ {[%clk 0:01:05]}  Kxd7 {[%clk 0:01:01]} 25. Rxe8 {[%clk 0:00:49]}  Qc3+ {[%clk 0:00:57]} 26. Kc1 {[%clk 0:00:46]}  Qa1+ {[%clk 0:00:57]} 27. Kd2 {[%clk 0:00:45]}  Qc3+ {[%clk 0:00:57]} 28. Kc1 {[%clk 0:00:40]}  Qa1+ {[%clk 0:00:56]} 29. Kd2 {[%clk 0:00:40]}  Qc3+ {[%clk 0:00:55]} 1/2-1/2

[Event "November 21 Early 2023"]
[Site "https://www.chess.com"]
[Date "2023.11.21"]
[Round "2"]
[White "Graca, Robert"]
[Black "Vlasova, Nataliya"]
[Result "1-0"]
[Board "175"]
[TimeControl "180+1"]
[WhiteFideId "644943"]
[BlackFideId "4122682"]
[WhiteElo "2204"]
[BlackElo "1939"]
[WhiteTeam "FRA"]
[BlackTeam "RUS"]
[WhiteClock "0:00:08"]
[BlackClock "0:00:06"]

1. Nf3 {[%clk 0:03:00]}  Nf6 {[%clk 0:03:00]} 2. c4 {[%clk 0:02:59]}  g6 {[%clk 0:03:00]} 3. Nc3 {[%clk 0:02:59]}  Bg7 {[%clk 0:03:01]} 4. e4 {[%clk 0:02:59]}  d6 {[%clk 0:03:00]} 5. d4 {[%clk 0:03:00]}  O-O {[%clk 0:03:00]} 6. Be2 {[%clk 0:03:00]}  Nc6 {[%clk 0:02:59]} 7. Be3 {[%clk 0:03:00]}  e5 {[%clk 0:02:59]} 8. d5 {[%clk 0:03:00]}  Ne7 {[%clk 0:02:59]} 9. Nd2 {[%clk 0:03:01]}  Nd7 {[%clk 0:02:59]} 10. b4 {[%clk 0:03:00]}  f5 {[%clk 0:03:00]} 11. f3 {[%clk 0:02:59]}  f4 {[%clk 0:03:00]} 12. Bf2 {[%clk 0:03:00]}  g5 {[%clk 0:03:01]} 13. h3 {[%clk 0:03:00]}  Nf6 {[%clk 0:03:00]} 14. c5 {[%clk 0:03:00]}  h5 {[%clk 0:02:59]} 15. Nc4 {[%clk 0:03:01]}  a5 {[%clk 0:02:55]} 16. cxd6 {[%clk 0:02:56]}  cxd6 {[%clk 0:02:53]} 17. Bb6 {[%clk 0:02:44]}  Qd7 {[%clk 0:02:53]} 18. Nxa5 {[%clk 0:02:43]}  Ng6 {[%clk 0:02:38]} 19. Rc1 {[%clk 0:02:31]}  Nh4 {[%clk 0:02:37]} 20. Kf1 {[%clk 0:02:26]}  Bh6 {[%clk 0:02:00]} 21. Nb5 {[%clk 0:02:25]}  Qg7 {[%clk 0:01:46]} 22. Rc7 {[%clk 0:02:20]}  Qg6 {[%clk 0:01:46]} 23. Nxd6 {[%clk 0:02:12]}  g4 {[%clk 0:01:45]} 24. hxg4 {[%clk 0:02:08]}  Nxg2 {[%clk 0:01:42]} 25. Kxg2 {[%clk 0:01:59]}  hxg4 {[%clk 0:01:42]} 26. Qg1 {[%clk 0:01:12]}  gxf3+ {[%clk 0:01:06]} 27. Kxf3 {[%clk 0:01:13]}  Bg4+ {[%clk 0:01:05]} 28. Kf2 {[%clk 0:01:02]}  f3 {[%clk 0:01:05]} 29. Nf5 {[%clk 0:00:52]}  Nxe4+ {[%clk 0:01:02]} 30. Ke1 {[%clk 0:00:46]}  Bd2+ {[%clk 0:00:58]} 31. Kd1 {[%clk 0:00:40]}  fxe2+ {[%clk 0:00:56]} 32. Kc2 {[%clk 0:00:40]}  Rac8 {[%clk 0:00:42]} 33. Ne7+ {[%clk 0:00:31]}  Kg7 {[%clk 0:00:38]} 34. Nxg6+ {[%clk 0:00:30]}  Rxc7+ {[%clk 0:00:38]} 35. Bxc7 {[%clk 0:00:26]}  e1=Q {[%clk 0:00:31]} 36. Bxe5+ {[%clk 0:00:15]}  Nf6 {[%clk 0:00:20]} 37. Qxe1 {[%clk 0:00:13]}  Bxe1 {[%clk 0:00:21]} 38. Nxf8 {[%clk 0:00:13]}  Bf5+ {[%clk 0:00:20]} 39. Kb3 {[%clk 0:00:12]}  Bf2 {[%clk 0:00:13]} 40. Ne6+ {[%clk 0:00:08]}  Bxe6 {[%clk 0:00:13]} 41. dxe6 {[%clk 0:00:09]}  Bb6 {[%clk 0:00:10]} 42. Rf1 {[%clk 0:00:08]}  Bd8 {[%clk 0:00:09]} 43. Nxb7 {[%clk 0:00:07]}  Be7 {[%clk 0:00:09]} 44. Nc5 {[%clk 0:00:07]}  Kg6 {[%clk 0:00:08]} 45. Nd7 {[%clk 0:00:07]}  Nd5 {[%clk 0:00:06]} 46. a3 {[%clk 0:00:04]}  Ne3 {[%clk 0:00:05]} 47. Rf3 {[%clk 0:00:04]}  Nf5 {[%clk 0:00:06]} 48. Rg3+ {[%clk 0:00:03]}  Bg5 {[%clk 0:00:05]} 49. Bf4 {[%clk 0:00:02]}  Kh5 {[%clk 0:00:06]} 50. Rxg5+ {[%clk 0:00:02]}  Kh4 {[%clk 0:00:05]} 51. Rxf5 {[%clk 0:00:03]}  Kg4 {[%clk 0:00:06]} 52. Rf7 {[%clk 0:00:04]}  Kf3 {[%clk 0:00:06]} 53. Bb8+ {[%clk 0:00:05]}  Ke4 {[%clk 0:00:07]} 54. e7 {[%clk 0:00:06]}  Kd4 {[%clk 0:00:07]} 55. Nb6 {[%clk 0:00:07]}  Kd3 {[%clk 0:00:07]} 56. Na4 {[%clk 0:00:08]}  Kd2 {[%clk 0:00:06]} 57. e8=Q {[%clk 0:00:08]} 1-0

[Event "November 21 Early 2023"]
[Site "https://www.chess.com"]
[Date "2023.11.21"]
[Round "2"]
[White "Ongut, Tamas Gunes"]
[Black "AC_20"]
[Result "0-1"]
[Board "179"]
[TimeControl "180+1"]
[WhiteFideId "770280"]
[WhiteElo "2148"]
[BlackElo "2340"]
[WhiteTeam "HUN"]
[WhiteClock "0:00:10"]
[BlackClock "0:00:35"]

1. d4 {[%clk 0:03:00]}  d5 {[%clk 0:02:58]} 2. c4 {[%clk 0:03:00]}  e6 {[%clk 0:02:58]} 3. Bf4 {[%clk 0:03:00]}  Nf6 {[%clk 0:02:55]} 4. cxd5 {[%clk 0:02:49]}  exd5 {[%clk 0:02:54]} 5. f3 {[%clk 0:02:48]}  c6 {[%clk 0:02:54]} 6. Nc3 {[%clk 0:02:47]}  Bd6 {[%clk 0:02:54]} 7. Bg5 {[%clk 0:02:44]}  h6 {[%clk 0:02:54]} 8. Bh4 {[%clk 0:02:44]}  O-O {[%clk 0:02:53]} 9. e4 {[%clk 0:02:45]}  dxe4 {[%clk 0:02:46]} 10. fxe4 {[%clk 0:02:42]}  g5 {[%clk 0:02:47]} 11. Bg3 {[%clk 0:02:39]}  Bxg3+ {[%clk 0:02:27]} 12. hxg3 {[%clk 0:02:38]}  Re8 {[%clk 0:02:28]} 13. e5 {[%clk 0:02:30]}  c5 {[%clk 0:02:27]} 14. Bb5 {[%clk 0:02:07]}  Nc6 {[%clk 0:02:13]} 15. Bxc6 {[%clk 0:02:05]}  bxc6 {[%clk 0:02:13]} 16. Qf3 {[%clk 0:02:01]}  cxd4 {[%clk 0:02:08]} 17. O-O-O {[%clk 0:01:49]}  Bg4 {[%clk 0:02:06]} 18. Qxf6 {[%clk 0:01:48]}  Qxf6 {[%clk 0:02:06]} 19. exf6 {[%clk 0:01:46]}  dxc3 {[%clk 0:02:07]} 20. Nf3 {[%clk 0:01:40]}  cxb2+ {[%clk 0:02:07]} 21. Kxb2 {[%clk 0:01:39]}  Re2+ {[%clk 0:02:06]} 22. Kc3 {[%clk 0:01:39]}  Rxg2 {[%clk 0:02:05]} 23. Rxh6 {[%clk 0:01:37]}  Rxg3 {[%clk 0:01:30]} 24. Rdh1 {[%clk 0:01:35]}  Rxf3+ {[%clk 0:01:30]} 25. Kc4 {[%clk 0:01:32]}  Be6+ {[%clk 0:01:23]} 26. Kc5 {[%clk 0:01:30]}  Rc3+ {[%clk 0:01:20]} 27. Kd6 {[%clk 0:01:30]}  Rd3+ {[%clk 0:01:14]} 28. Kc5 {[%clk 0:01:01]}  Rh3 {[%clk 0:00:45]} 29. R1xh3 {[%clk 0:01:00]}  Bxh3 {[%clk 0:00:46]} 30. Rxh3 {[%clk 0:01:00]}  Re8 {[%clk 0:00:44]} 31. Rg3 {[%clk 0:00:49]}  Re5+ {[%clk 0:00:44]} 32. Kxc6 {[%clk 0:00:49]}  Kh7 {[%clk 0:00:44]} 33. Ra3 {[%clk 0:00:29]}  g4 {[%clk 0:00:40]} 34. Rxa7 {[%clk 0:00:30]}  Kg6 {[%clk 0:00:39]} 35. a4 {[%clk 0:00:26]}  g3 {[%clk 0:00:39]} 36. Ra8 {[%clk 0:00:26]}  Kxf6 {[%clk 0:00:39]} 37. Rh8 {[%clk 0:00:19]}  g2 {[%clk 0:00:37]} 38. Rh6+ {[%clk 0:00:13]}  Kg7 {[%clk 0:00:37]} 39. Rh4 {[%clk 0:00:12]}  g1=Q {[%clk 0:00:36]} 40. Rb4 {[%clk 0:00:10]}  Qc5+ {[%clk 0:00:35]} 0-1

[Event "November 21 Early 2023"]
[Site "https://www.chess.com"]
[Date "2023.11.21"]
[Round "2"]
[White "Krzywda, Andrzej"]
[Black "KorolDimitriy75"]
[Result "1/2-1/2"]
[Board "180"]
[TimeControl "180+1"]
[WhiteFideId "1114565"]
[WhiteElo "2130"]
[BlackElo "2338"]
[WhiteTeam "POL"]
[WhiteClock "0:00:12"]
[BlackClock "0:00:04"]

1. e4 {[%clk 0:03:00]}  c5 {[%clk 0:03:00]} 2. Nf3 {[%clk 0:03:01]}  d6 {[%clk 0:03:00]} 3. d4 {[%clk 0:03:01]}  cxd4 {[%clk 0:03:01]} 4. Nxd4 {[%clk 0:03:02]}  Nf6 {[%clk 0:03:02]} 5. Nc3 {[%clk 0:03:02]}  g6 {[%clk 0:03:03]} 6. Be3 {[%clk 0:03:02]}  Bg7 {[%clk 0:03:03]} 7. f3 {[%clk 0:03:03]}  O-O {[%clk 0:03:04]} 8. Qd2 {[%clk 0:03:03]}  Nc6 {[%clk 0:03:05]} 9. O-O-O {[%clk 0:03:03]}  d5 {[%clk 0:03:05]} 10. exd5 {[%clk 0:03:03]}  Nxd5 {[%clk 0:03:06]} 11. Nxc6 {[%clk 0:03:02]}  bxc6 {[%clk 0:03:07]} 12. Bd4 {[%clk 0:03:03]}  e5 {[%clk 0:03:07]} 13. Bc5 {[%clk 0:03:03]}  Be6 {[%clk 0:03:07]} 14. Ne4 {[%clk 0:03:03]}  Rb8 {[%clk 0:03:07]} 15. Bc4 {[%clk 0:02:54]}  Qc7 {[%clk 0:03:07]} 16. Bb3 {[%clk 0:02:36]}  Rfd8 {[%clk 0:03:03]} 17. Qf2 {[%clk 0:02:36]}  a5 {[%clk 0:02:52]} 18. a4 {[%clk 0:02:36]}  h6 {[%clk 0:02:08]} 19. Kb1 {[%clk 0:02:33]}  f5 {[%clk 0:01:53]} 20. Nd2 {[%clk 0:02:33]}  Nf4 {[%clk 0:01:37]} 21. Nc4 {[%clk 0:02:22]}  Rd5 {[%clk 0:01:09]} 22. Nb6 {[%clk 0:02:09]}  Rxc5 {[%clk 0:00:48]} 23. Qxc5 {[%clk 0:02:05]}  Qxb6 {[%clk 0:00:42]} 24. Qxb6 {[%clk 0:01:01]}  Rxb6 {[%clk 0:00:43]} 25. Bxe6+ {[%clk 0:01:02]}  Nxe6 {[%clk 0:00:44]} 26. Rd6 {[%clk 0:01:02]}  Nc5 {[%clk 0:00:38]} 27. Rxg6 {[%clk 0:00:59]}  Kf7 {[%clk 0:00:33]} 28. Rd6 {[%clk 0:00:56]}  e4 {[%clk 0:00:26]} 29. b3 {[%clk 0:00:49]}  Nxa4 {[%clk 0:00:22]} 30. fxe4 {[%clk 0:00:46]}  Nc3+ {[%clk 0:00:20]} 31. Kc1 {[%clk 0:00:44]}  Nxe4 {[%clk 0:00:21]} 32. Rd7+ {[%clk 0:00:39]}  Kg6 {[%clk 0:00:21]} 33. Ra7 {[%clk 0:00:40]}  Bc3 {[%clk 0:00:20]} 34. Rd1 {[%clk 0:00:31]}  c5 {[%clk 0:00:20]} 35. Rd8 {[%clk 0:00:27]}  c4 {[%clk 0:00:20]} 36. Rg8+ {[%clk 0:00:13]}  Kh5 {[%clk 0:00:20]} 37. h3 {[%clk 0:00:12]}  cxb3 {[%clk 0:00:19]} 38. cxb3 {[%clk 0:00:13]}  Rxb3 {[%clk 0:00:18]} 39. g4+ {[%clk 0:00:13]}  fxg4 {[%clk 0:00:18]} 40. hxg4+ {[%clk 0:00:13]}  Kh4 {[%clk 0:00:18]} 41. Rh7 {[%clk 0:00:12]}  a4 {[%clk 0:00:15]} 42. Rxh6+ {[%clk 0:00:12]}  Kg3 {[%clk 0:00:16]} 43. Re6 {[%clk 0:00:10]}  Kf3 {[%clk 0:00:16]} 44. Rf8+ {[%clk 0:00:10]}  Ke3 {[%clk 0:00:16]} 45. Rfe8 {[%clk 0:00:10]}  Rb4 {[%clk 0:00:16]} 46. g5 {[%clk 0:00:10]}  a3 {[%clk 0:00:16]} 47. Kc2 {[%clk 0:00:08]}  a2 {[%clk 0:00:16]} 48. Ra8 {[%clk 0:00:08]}  a1=Q {[%clk 0:00:16]} 49. Rxa1 {[%clk 0:00:08]}  Bxa1 {[%clk 0:00:17]} 50. g6 {[%clk 0:00:08]}  Rb5 {[%clk 0:00:16]} 51. Ra6 {[%clk 0:00:05]}  Bd4 {[%clk 0:00:16]} 52. Ra3+ {[%clk 0:00:04]}  Bc3 {[%clk 0:00:16]} 53. g7 {[%clk 0:00:03]}  Rg5 {[%clk 0:00:15]} 54. Ra7 {[%clk 0:00:04]}  Rxg7 {[%clk 0:00:15]} 55. Rxg7 {[%clk 0:00:04]}  Bxg7 {[%clk 0:00:14]} 56. Kb3 {[%clk 0:00:04]}  Kd3 {[%clk 0:00:13]} 57. Kb4 {[%clk 0:00:05]}  Nc3 {[%clk 0:00:13]} 58. Kc5 {[%clk 0:00:04]}  Bd4+ {[%clk 0:00:12]} 59. Kd6 {[%clk 0:00:05]}  Ke4 {[%clk 0:00:12]} 60. Ke6 {[%clk 0:00:06]}  Nd5 {[%clk 0:00:12]} 61. Kd7 {[%clk 0:00:07]}  Bc5 {[%clk 0:00:11]} 62. Kc6 {[%clk 0:00:08]}  Kd4 {[%clk 0:00:12]} 63. Kb5 {[%clk 0:00:08]}  Nc3+ {[%clk 0:00:11]} 64. Kc6 {[%clk 0:00:09]}  Ne4 {[%clk 0:00:09]} 65. Kd7 {[%clk 0:00:10]}  Kd5 {[%clk 0:00:09]} 66. Kc7 {[%clk 0:00:10]}  Bd6+ {[%clk 0:00:09]} 67. Kd7 {[%clk 0:00:10]}  Nc5+ {[%clk 0:00:09]} 68. Kc8 {[%clk 0:00:10]}  Kc6 {[%clk 0:00:09]} 69. Kd8 {[%clk 0:00:10]}  Kd5 {[%clk 0:00:08]} 70. Kc8 {[%clk 0:00:10]}  Ke6 {[%clk 0:00:07]} 71. Kd8 {[%clk 0:00:11]}  Nd7 {[%clk 0:00:06]} 72. Kc8 {[%clk 0:00:11]}  Nc5 {[%clk 0:00:05]} 73. Kd8 {[%clk 0:00:11]}  Be7+ {[%clk 0:00:04]} 74. Kc8 {[%clk 0:00:12]}  Bd6 {[%clk 0:00:04]} 1/2-1/2